fUST/lending_fUST_20250622
["ID","MTS","AMOUNT","RATE_DAILY","PERIOD"]
[366898598,1750558232532,-230.14598372,0.00023749,2]
[366898600,1750558232542,-5000.0,0.0002375,2]
[366898602,1750558232552,-307.20017359,0.0002399,2]
[366898604,1750558232562,-152.0,0.00024,2]
[366898606,1750558232571,-524.02598587,0.00024,3]
[366898608,1750558232581,-524.02598587,0.00024,3]
[366898610,1750558232590,-307.20017356,0.00024215,2]
[366898612,1750558232599,-307.20017356,0.0002444,2]
[366898614,1750558232609,-361.42969326,0.00024658,2]
[366898616,1750558232620,-307.20017356,0.00024665,2]
[366898618,1750558232630,-823.201856,0.00024865,4]
[366898620,1750558232640,-207.4,0.00024881,2]
[366898622,1750558232650,-307.20017356,0.0002489,2]
[366898624,1750558232659,-350.72648912,0.00024895,2]
[366898626,1750558232669,-2469.80350094,0.00024896,2]
[366898628,1750558232678,-5035.08,0.00024896,2]
[366898629,1750558232688,-5035.08,0.00024896,2]
[366898631,1750558232697,-5035.08,0.00024896,2]
[366898633,1750558232707,-5035.08,0.00024896,2]
[366898635,1750558232716,-5035.08,0.00024896,2]
[366898637,1750558232725,-5035.08,0.00024896,2]
[366898639,1750558232738,-5035.08,0.00024896,2]
[366898641,1750558232747,-5035.08,0.00024896,2]
[366898643,1750558232756,-5035.08,0.00024896,2]
[366898645,1750558232766,-5035.08,0.00024896,2]
[366898647,1750558232775,-5035.08,0.00024896,2]
[366898649,1750558232785,-5035.08,0.00024896,2]
[366898651,1750558232794,-5035.08,0.00024896,2]
[366898653,1750558232803,-5035.08,0.00024896,2]
[366898655,1750558232813,-5035.14158817,0.00024896,2]
[366898657,1750558232823,-500.0,0.00024896,2]
[366898659,1750558232832,-500.0,0.00024896,2]
[366898661,1750558232843,-500.0,0.00024896,2]
[366898663,1750558232853,-500.0,0.00024896,2]
[366898665,1750558232863,-500.0,0.00024896,2]
[366898666,1750558232872,-500.0,0.00024896,2]
[366898668,1750558232883,-411.30838029,0.00024896,2]
[366898670,1750558232893,-460.0,0.00024896,2]
[366898672,1750558232902,-460.0,0.00024896,2]
[366898674,1750558232912,-460.0,0.00024896,2]
[366898676,1750558232922,-460.0,0.00024896,2]
[366898678,1750558232932,-460.0,0.00024896,2]
[366898680,1750558232942,-460.0,0.00024896,2]
[366898682,1750558232952,-460.0,0.00024896,2]
[366898684,1750558232962,-460.0,0.00024896,2]
[366898686,1750558232972,-460.0,0.00024896,2]
[366898688,1750558232982,-460.0,0.00024896,2]
[366898690,1750558232994,-460.0,0.00024896,2]
[366898692,1750558233004,-460.0,0.00024896,2]
[366898694,1750558233015,-460.0,0.00024896,2]
[366898696,1750558233025,-460.0,0.00024896,2]
[366898698,1750558233036,-460.0,0.00024896,2]
[366898700,1750558233046,-452.81611312,0.00024896,2]
[366898702,1750558233057,-155.0,0.00024896,2]
[366898704,1750558233067,-501.70865672,0.00025073,2]
[366898705,1750558233084,-500.0,0.00025073,2]
[366898707,1750558233095,-74621.94933139,0.00025091,2]
[366898820,1750558238203,-67563.01666861,0.00025091,2]
[366898821,1750558238213,-168.0,0.00025091,2]
[366898822,1750558238223,-938.27,0.000251,7]
[366898823,1750558238233,-3602.56,0.000251,7]
[366898824,1750558238245,-38309.18154871,0.00025111,2]
[366898825,1750558238255,-462.03112124,0.00025131,2]
[366898826,1750558238265,-967.115,0.00025137,2]
[366898827,1750558238274,-2161.0,0.00025137,2]
[366898828,1750558238283,-654.0,0.00025137,2]
[366898829,1750558238292,-409.271,0.00025137,2]
[366898830,1750558238303,-1328.31,0.000252,2]
[366898831,1750558238312,-142184.966,0.00025203,2]
[366898832,1750558238320,-800.0,0.00025213,2]
[366898833,1750558238329,-151.0,0.00025231,7]
[366898834,1750558238339,-200.0,0.0002527,12]
[366898835,1750558238348,-500.0,0.00025273,2]
[366898836,1750558238358,-500.0,0.00025273,2]
[366898837,1750558238368,-600.0,0.00025273,2]
[366898838,1750558238378,-1119.301354,0.0002528,5]
[366898839,1750558238390,-3955.84507632,0.00025285,2]
[366898840,1750558238401,-151.29,0.00025286,4]
[366898841,1750558238411,-2000.0,0.000253,2]
[366898842,1750558238420,-2000.0,0.000253,2]
[366898843,1750558238431,-151.0,0.000253,18]
[366898844,1750558238440,-553.278371,0.000253,5]
[366898845,1750558238450,-1000.0,0.000253,5]
[366898846,1750558238461,-599.47,0.000253,31]
[366898847,1750558238471,-599.47,0.000253,31]
[366898848,1750558238480,-599.47,0.000253,31]
[366898849,1750558238492,-599.47,0.000253,31]
[366898850,1750558238501,-599.47,0.000253,31]
[366898851,1750558238511,-599.47,0.000253,31]
[366898852,1750558238520,-599.47,0.000253,31]
[366898853,1750558238530,-599.47,0.000253,31]
[366898854,1750558238539,-599.47,0.000253,31]
[366898855,1750558238549,-599.47,0.000253,31]
[366898856,1750558238558,-599.47,0.000253,31]
[366898857,1750558238568,-599.47,0.000253,31]
[366898858,1750558238577,-599.47,0.000253,31]
[366898859,1750558238586,-599.47,0.000253,31]
[366898860,1750558238599,-599.47,0.000253,31]
[366898861,1750558238609,-599.47,0.000253,31]
[366898862,1750558238618,-150.0,0.000253,30]
[366898863,1750558238629,-160.0,0.00025308,2]
[366898864,1750558238639,-800.0,0.00025308,2]
[366898865,1750558238648,-151.0,0.00025343,2]
[366898866,1750558238658,-152.07072463,0.00025343,2]
[366898867,1750558238668,-500.0,0.00025343,2]
[366898868,1750558238678,-200.52860283,0.00025343,2]
[366898869,1750558238687,-198.27763819,0.00025343,2]
[366898870,1750558238696,-200.00043271,0.00025343,2]
[366898871,1750558238706,-142184.966,0.00025354,2]
[366898872,1750558238715,-588.94543018,0.00025361,9]
[366898873,1750558238726,-151.0,0.00025364,7]
[366898874,1750558238739,-161.858604,0.00025364,7]
[366898875,1750558238748,-151.0,0.00025364,7]
[366898876,1750558238758,-151.0,0.00025364,7]
[366898877,1750558238767,-151.0,0.00025364,7]
[366898878,1750558238776,-151.0,0.00025364,7]
[366898879,1750558238786,-172.553935,0.00025364,7]
[366898880,1750558238796,-151.0,0.00025364,7]
[366898881,1750558238806,-151.0,0.00025364,7]
[366898882,1750558238816,-151.0,0.00025364,7]
[366898883,1750558238825,-151.0,0.00025364,7]
[366898884,1750558238835,-151.0,0.00025364,7]
[366898885,1750558238844,-151.0,0.00025364,7]
[366898886,1750558238854,-151.0,0.00025364,7]
[366898887,1750558238864,-151.0,0.00025364,7]
[366898888,1750558238874,-151.0,0.00025364,7]
[366898889,1750558238884,-151.0,0.00025364,7]
[366898890,1750558238899,-151.0,0.00025364,7]
[366898891,1750558239038,-151.0,0.00025364,7]
[366898892,1750558239049,-151.0,0.00025364,7]
[366898893,1750558239059,-151.0,0.00025364,7]
[366898894,1750558239069,-151.0,0.00025364,7]
[366898895,1750558239079,-152.367067,0.00025364,7]
[366898896,1750558239089,-151.0,0.00025364,7]
[366898897,1750558239098,-151.0,0.00025364,7]
[366898898,1750558239108,-151.0,0.00025364,7]
[366898899,1750558239120,-151.0,0.00025364,7]
[366898900,1750558239129,-151.0,0.00025364,7]
[366898901,1750558239139,-188.462184,0.00025364,7]
[366898902,1750558239150,-151.0,0.00025364,7]
[366898903,1750558239160,-151.0,0.00025364,7]
[366898904,1750558239171,-151.0,0.00025364,7]
[366898905,1750558239181,-155.500292,0.00025364,7]
[366898906,1750558239191,-155.500292,0.00025364,7]
[366898907,1750558239201,-155.500292,0.00025364,7]
[366898908,1750558239212,-155.500292,0.00025364,7]
[366898909,1750558239222,-155.500292,0.00025364,7]
[366898910,1750558239232,-155.500292,0.00025364,7]
[366898911,1750558239242,-155.500292,0.00025364,7]
[366898912,1750558239252,-155.500292,0.00025364,7]
[366898913,1750558239262,-155.500292,0.00025364,7]
[366898914,1750558239272,-155.500292,0.00025364,7]
[366898915,1750558239282,-155.500292,0.00025364,7]
[366898916,1750558239292,-155.500292,0.00025364,7]
[366898917,1750558239301,-155.500292,0.00025364,7]
[366898918,1750558239312,-155.500292,0.00025364,7]
[366898919,1750558239322,-155.500292,0.00025364,7]
[366898920,1750558239332,-155.500292,0.00025364,7]
[366898921,1750558239342,-155.500292,0.00025364,7]
[366898922,1750558239352,-155.500292,0.00025364,7]
[366898923,1750558239361,-155.500292,0.00025364,7]
[366898924,1750558239371,-155.500285,0.00025364,7]
[366898925,1750558239382,-518.937498,0.00025364,7]
[366898926,1750558239392,-518.937498,0.00025364,7]
[366898927,1750558239403,-518.937498,0.00025364,7]
[366898928,1750558239413,-518.937498,0.00025364,7]
[366898929,1750558239423,-518.937498,0.00025364,7]
[366898930,1750558239434,-518.937498,0.00025364,7]
[366898931,1750558239444,-518.937498,0.00025364,7]
[366898932,1750558239454,-518.937498,0.00025364,7]
[366898933,1750558239465,-518.937498,0.00025364,7]
[366898934,1750558239480,-518.937498,0.00025364,7]
[366898935,1750558239497,-518.937498,0.00025364,7]
[366898936,1750558239507,-518.937498,0.00025364,7]
[366898937,1750558239518,-518.937498,0.00025364,7]
[366898938,1750558239531,-518.937498,0.00025364,7]
[366898939,1750558239543,-518.937498,0.00025364,7]
[366898940,1750558239555,-518.937498,0.00025364,7]
[366898941,1750558239567,-518.937498,0.00025364,7]
[366898942,1750558239578,-518.937498,0.00025364,7]
[366898943,1750558239588,-518.937498,0.00025364,7]
[366898944,1750558239601,-518.93750118,0.00025364,7]
[366898945,1750558239611,-157.479994,0.00025364,7]
[366898946,1750558239622,-157.479994,0.00025364,7]
[366898947,1750558239631,-157.479994,0.00025364,7]
[366898948,1750558239641,-157.479994,0.00025364,7]
[366898949,1750558239651,-157.479994,0.00025364,7]
[366898950,1750558239661,-157.479994,0.00025364,7]
[366898951,1750558239670,-157.479994,0.00025364,7]
[366898952,1750558239681,-157.479994,0.00025364,7]
[366898953,1750558239690,-157.479994,0.00025364,7]
[366898954,1750558239700,-157.479994,0.00025364,7]
[366898955,1750558239711,-157.479994,0.00025364,7]
[366898956,1750558239721,-157.479994,0.00025364,7]
[366898957,1750558239731,-157.479994,0.00025364,7]
[366898958,1750558239747,-157.479994,0.00025364,7]
[366898959,1750558239758,-157.479994,0.00025364,7]
[366898960,1750558239768,-157.479994,0.00025364,7]
[366898961,1750558239778,-157.479994,0.00025364,7]
[366898962,1750558239788,-157.479994,0.00025364,7]
[366898963,1750558239798,-157.479994,0.00025364,7]
[366898964,1750558239808,-157.479991,0.00025364,7]
[366898965,1750558239818,-846.39664074,0.00025364,7]
[366898966,1750558239829,-168.0,0.00025364,2]
[366898967,1750558239839,-153.837992,0.00025365,7]
[366898968,1750558239849,-151.739666,0.00025365,7]
[366898969,1750558239860,-151.0,0.00025365,7]
[366898970,1750558239870,-151.0,0.00025365,7]
[366898971,1750558239881,-151.0,0.00025365,7]
[366898972,1750558239891,-153.057503,0.00025365,7]
[366898973,1750558239901,-151.730296,0.00025365,7]
[366898974,1750558239910,-151.0,0.00025365,7]
[366898975,1750558239920,-151.0,0.00025365,7]
[366898976,1750558239930,-151.0,0.00025365,7]
[366898977,1750558239939,-156.385891,0.00025365,7]
[366898978,1750558239949,-151.0,0.00025365,7]
[366898979,1750558239960,-152.302789,0.00025365,7]
[366898980,1750558239970,-151.0,0.00025365,7]
[366898981,1750558239980,-151.0,0.00025365,7]
[366898982,1750558239994,-151.0,0.00025365,7]
[366898983,1750558240005,-158.666451,0.00025365,7]
[366898984,1750558240015,-151.0,0.00025365,7]
[366898986,1750558240025,-151.0,0.00025365,7]
[366898987,1750558240035,-151.0,0.00025365,7]
[366898988,1750558240045,-151.0,0.00025365,7]
[366898989,1750558240054,-151.42789,0.00025365,7]
[366898990,1750558240064,-151.0,0.00025365,7]
[366898991,1750558240074,-151.0,0.00025365,7]
[366898992,1750558240083,-151.0,0.00025365,7]
[366898993,1750558240093,-178.81937,0.00025365,7]
[366898994,1750558240101,-152.838469,0.00025365,7]
[366898995,1750558240112,-151.0,0.00025365,7]
[366898996,1750558240124,-151.0,0.00025365,7]
[366898997,1750558240133,-151.0,0.00025365,7]
[366898998,1750558240143,-151.0,0.00025365,7]
[366898999,1750558240152,-151.0,0.00025365,7]
[366899000,1750558240163,-151.0,0.00025365,7]
[366899001,1750558240172,-151.0,0.00025365,7]
[366899002,1750558240182,-151.0,0.00025365,7]
[366899003,1750558240193,-151.0,0.00025365,7]
[366899004,1750558240202,-151.0,0.00025365,7]
[366899005,1750558240211,-151.0,0.00025365,7]
[366899006,1750558240220,-151.0,0.00025365,7]
[366899007,1750558240231,-151.0,0.00025365,7]
[366899008,1750558240244,-151.0,0.00025365,7]
[366899009,1750558240254,-151.0,0.00025365,7]
[366899010,1750558240263,-166.998123,0.00025365,7]
[366899011,1750558240273,-151.0,0.00025366,7]
[366899012,1750558240283,-151.0,0.00025366,7]
[366899013,1750558240293,-154.288261,0.00025366,7]
[366899014,1750558240303,-151.0,0.00025366,7]
[366899015,1750558240313,-170.66147,0.00025366,7]
[366899016,1750558240323,-219.74198,0.00025366,7]
[366899017,1750558240333,-12549.17366507,0.0002537,3]
[366899018,1750558240341,-846.39664074,0.0002537,3]
[366899019,1750558240351,-151.0,0.0002537,2]
[366899020,1750558240360,-500.0,0.0002537,2]
[366899021,1750558240369,-500.0,0.00025373,2]
[366899023,1750558240379,-500.0,0.00025373,2]
[366899024,1750558240391,-500.0,0.00025373,2]
[366899025,1750558240400,-500.0,0.00025373,2]
[366899026,1750558240410,-507.76290015,0.00025373,2]
[366899028,1750558240420,-504.1913098,0.00025373,2]
[366899029,1750558240430,-4611.67167487,0.00025373,67]
[366899030,1750558240439,-142184.966,0.00025375,2]
[366899032,1750558240448,-151.0,0.00025377,7]
[366899033,1750558240458,-151.0,0.00025385,7]
[366899034,1750558240467,-151.0,0.00025385,7]
[366899035,1750558240478,-152.90786,0.00025385,7]
[366899036,1750558240492,-151.0,0.00025385,7]
[366899037,1750558240501,-151.0,0.00025385,7]
[366899038,1750558240511,-151.0,0.00025385,7]
[366899039,1750558240521,-200.0,0.00025385,30]
[366899040,1750558240531,-200.0,0.00025385,30]
[366899042,1750558240541,-200.0,0.00025385,30]
[366899044,1750558240551,-279.81042265,0.00025385,30]
[366899045,1750558240561,-152.766373,0.00025385,7]
[366899046,1750558240571,-151.0,0.00025385,7]
[366899047,1750558240580,-151.0,0.00025385,7]
[366899048,1750558240590,-151.0,0.00025385,7]
[366899049,1750558240600,-151.0,0.00025385,7]
[366899050,1750558240609,-151.0,0.00025385,7]
[366899052,1750558240621,-151.0,0.00025385,7]
[366899053,1750558240631,-151.0,0.00025385,7]
[366899054,1750558240640,-151.0,0.00025385,7]
[366899055,1750558240650,-151.0,0.00025385,7]
[366899056,1750558240659,-151.0,0.00025385,7]
[366899057,1750558240669,-151.0,0.00025385,7]
[366899058,1750558240678,-151.0,0.00025385,7]
[366899059,1750558240688,-151.0,0.00025385,7]
[366899060,1750558240699,-151.0,0.00025385,7]
[366899061,1750558240708,-245.733069,0.00025385,7]
[366899062,1750558240718,-151.0,0.00025385,7]
[366899063,1750558240728,-152.877194,0.00025385,7]
[366899064,1750558240739,-151.0,0.00025385,7]
[366899065,1750558240749,-151.0,0.00025385,7]
[366899066,1750558240759,-153.154652,0.00025385,7]
[366899067,1750558240768,-151.0,0.00025385,7]
[366899068,1750558240777,-151.0,0.00025385,7]
[366899069,1750558240787,-151.0,0.00025385,7]
[366899070,1750558240797,-151.0,0.00025385,7]
[366899071,1750558240807,-151.0,0.00025385,7]
[366899072,1750558240816,-151.0,0.00025385,7]
[366899073,1750558240826,-151.0,0.00025385,7]
[366899074,1750558240835,-151.0,0.00025385,7]
[366899075,1750558240845,-151.0,0.00025385,7]
[366899076,1750558240855,-151.0,0.00025385,7]
[366899077,1750558240865,-151.0,0.00025385,7]
[366899078,1750558240874,-151.0,0.00025385,7]
[366899079,1750558240885,-151.0,0.00025385,7]
[366899080,1750558240894,-151.0,0.00025385,7]
[366899081,1750558240904,-294.317478,0.00025385,7]
[366899082,1750558240914,-15377.96381428,0.00025385,2]
[366899083,1750558240924,-19651.76647402,0.00025385,2]
[366899084,1750558240934,-524.02598587,0.00025386,30]
[366899085,1750558240944,-139440.04997394,0.00025386,20]
[366899086,1750558240990,-9857.28347126,0.00025386,20]
[366899087,1750558241052,-143928.69375221,0.00025386,20]
[366899088,1750558241067,-582411.86804424,0.00025386,20]
[366899089,1750558241081,-323470.58472346,0.00025386,20]
[366899090,1750558242743,-225328.71876532,0.00025386,20]
[366899091,1750558242861,-1435.07447382,0.00025386,20]
[366899096,1750558244446,-130105.43690097,0.00025386,20]
[366899103,1750558246345,-42662.50726091,0.00025386,20]
[366899104,1750558246357,-220396.91457,0.00025386,20]
[366899120,1750558340074,220.668458,0.00013699,2]
[366899121,1750558340317,220.668458,0.00020187,2]
[366899129,1750559191323,150.0,0.000189,2]
[366899130,1750559193090,150.0,0.000189,2]
[366899132,1750559248135,-444.99071206,0.00021919,2]
[366899133,1750559248156,-950.0,0.00021919,2]
[366899134,1750559248180,-160.0,0.00022601,2]
[366899135,1750559248201,-160.0,0.000231,2]
[366899136,1750559248222,-300.0,0.00023119,2]
[366899137,1750559248244,-300.0,0.00023119,2]
[366899138,1750559248265,-846.39664074,0.00023119,2]
[366899139,1750559248285,-230.14598372,0.00023119,2]
[366899140,1750559248308,-200.74914707,0.00023119,2]
[366899141,1750559248329,-160.0,0.00023119,2]
[366899142,1750559248350,-160.0,0.0002312,2]
[366899143,1750559248372,-11327.30082846,0.0002312,2]
[366899155,1750559254122,-724.05667605,0.0002312,2]
[366899220,1750559432650,-12551.52821599,0.00023118,2]
[366899222,1750559432660,-846.39664074,0.00023119,2]
[366899224,1750559432670,-230.14598372,0.00023119,2]
[366899226,1750559432679,-168.0,0.00023201,2]
[366899228,1750559432689,-300.0,0.00023599,2]
[366899230,1750559432698,-513.78406732,0.000236,2]
[366899232,1750559432708,-428.49514207,0.000236,2]
[366899386,1750559438541,-79.65203159,0.000236,2]
[366899387,1750559438551,-535.55218752,0.000236,2]
[366899388,1750559438561,-506.63199353,0.000236,2]
[366899389,1750559438571,-207.4,0.00023757,2]
[366899390,1750559438581,-68.84067045,0.00023757,2]
[366899438,1750559756819,214.898851,0.00013699,2]
[366900072,1750560439142,-214.898851,0.00020187,2]
[366900073,1750560439163,-846.39664074,0.00023743,2]
[366900074,1750560439185,-230.14598372,0.00023743,2]
[366900075,1750560439211,-300.0,0.00023769,2]
[366900076,1750560439234,-464.89586248,0.0002377,2]
[366900077,1750560439255,-354.78543483,0.0002377,2]
[366900078,1750560447127,-102.06158156,0.0002377,2]
[366900079,1750560447149,-499.44767067,0.0002377,2]
[366900080,1750560447170,-515.45271842,0.0002377,2]
[366900081,1750560447194,-406.99636055,0.00023784,2]
[366900082,1750560466952,215.5810401,0.00024649,120]
[366900130,1750560632819,-847.91589294,0.00023546,2]
[366900132,1750560632833,-460.0,0.0002377,2]
[366900134,1750560632843,-846.39664074,0.0002377,2]
[366900136,1750560632853,-230.14598372,0.0002377,2]
[366900138,1750560632863,-300.0,0.00023797,2]
[366900140,1750560632872,-300.0,0.00023798,2]
[366900142,1750560632882,-460.0,0.00023799,2]
[366900144,1750560632892,-462.30673277,0.00023799,2]
[366900146,1750560632903,-532.486,0.00023799,5]
[366900148,1750560632913,-460.0,0.00023799,2]
[366900150,1750560632922,-452.58123462,0.00023799,2]
[366900152,1750560632931,-168.71604563,0.00023799,2]
[366900154,1750560632941,-469.25522441,0.00023799,2]
[366900156,1750560632950,-558.83175593,0.00023799,2]
[366900158,1750560632960,-460.0,0.00023799,2]
[366900160,1750560632969,-460.0,0.00023799,2]
[366900162,1750560632978,-403.54367086,0.00023799,2]
[366900233,1750560638670,-56.45632914,0.00023799,2]
[366900235,1750560638680,-245.50854238,0.00023799,2]
[366900237,1750560638690,-500.0,0.00023799,2]
[366900239,1750560638700,-500.0,0.00023799,2]
[366900241,1750560638710,-500.0,0.00023799,2]
[366900243,1750560638719,-225.21827689,0.00023799,2]
[366900245,1750560638728,-500.0,0.00023799,2]
[366900247,1750560638739,-500.0,0.00023799,2]
[366900249,1750560638750,-500.0,0.00023799,2]
[366900251,1750560638760,-500.0,0.00023799,2]
[366900253,1750560638770,-500.0,0.00023799,2]
[366900255,1750560638780,-500.0,0.00023799,2]
[366900257,1750560638789,-500.0,0.00023799,2]
[366900259,1750560638799,-500.0,0.00023799,2]
[366900261,1750560638809,-500.0,0.00023799,2]
[366900263,1750560638820,-500.0,0.00023799,2]
[366900265,1750560638830,-15377.96381428,0.000238,2]
[366900266,1750560638840,-19651.76647402,0.000238,2]
[366900269,1750560638850,-16635.94540094,0.000238,5]
[366900271,1750560638859,-510.90691557,0.00023875,2]
[366900272,1750560638869,-207.4,0.00023893,2]
[366900274,1750560638879,-1664.94097883,0.00023893,2]
[366900276,1750560638888,-467.69433871,0.00023908,2]
[366900278,1750560638899,-438.56623784,0.00023908,2]
[366900281,1750560638910,-508.41042037,0.00023933,2]
[366900283,1750560638919,-524.02598587,0.00024,3]
[366900285,1750560638929,-524.02598587,0.00024,3]
[366900287,1750560638938,-505.23839989,0.00024,2]
[366900289,1750560638948,-504.55540538,0.00024,2]
[366900291,1750560638957,-502.72128038,0.00024,2]
[366900293,1750560638966,-500.0,0.00024,2]
[366900295,1750560638976,-847.29,0.00024013,7]
[366900297,1750560638985,-168.71604561,0.00024047,2]
[366900299,1750560638994,-847.29,0.00024113,3]
[366900301,1750560639005,-1020.22,0.000242,7]
[366900303,1750560639019,-847.29,0.00024213,2]
[366900305,1750560639028,-168.71604561,0.00024294,2]
[366900307,1750560639037,-847.29,0.00024313,7]
[366900309,1750560639046,-460.0,0.00024412,2]
[366900311,1750560639054,-847.29,0.00024413,3]
[366900313,1750560639064,-847.29,0.00024513,5]
[366900315,1750560639074,-168.71604561,0.00024542,2]
[366900317,1750560639083,-465.34351495,0.00024548,2]
[366900319,1750560639092,-847.29,0.00024613,7]
[366900321,1750560639102,-349.58061852,0.00024658,2]
[366900323,1750560639111,-847.29,0.00024713,7]
[366900325,1750560639120,-168.71604561,0.00024789,2]
[366900327,1750560639132,-847.29,0.00024813,2]
[366900329,1750560639141,-504.1913098,0.00024873,2]
[366900331,1750560639151,-600.0,0.00024873,2]
[366900333,1750560639161,-502.34356783,0.00024873,2]
[366900335,1750560639171,-500.0,0.00024873,2]
[366900337,1750560639180,-500.0,0.00024873,2]
[366900339,1750560639189,-460.0,0.00024875,2]
[366900341,1750560639200,-17359.65871545,0.00024876,7]
[366900343,1750560639209,-1051.745671,0.00024877,4]
[366900345,1750560639219,-1398.07688309,0.00024878,7]
[366900347,1750560639228,-460.0,0.00024889,2]
[366900349,1750560639237,-460.0,0.00024899,2]
[366900351,1750560639247,-460.0,0.00024899,2]
[366900353,1750560639256,-460.0,0.00024899,2]
[366900355,1750560639266,-460.0,0.00024899,2]
[366900357,1750560639276,-460.0,0.00024899,2]
[366900359,1750560639285,-502.19364887,0.00024899,2]
[366900361,1750560639295,-3242.31,0.000249,7]
[366900363,1750560639305,-114814.360045,0.000249,2]
[366900365,1750560639314,-847.29,0.00024913,5]
[366900367,1750560639325,-967.115,0.00024988,2]
[366900370,1750560639334,-409.271,0.00024988,2]
[366900372,1750560639344,-654.0,0.00024988,2]
[366900374,1750560639353,-2161.0,0.00024988,2]
[366900376,1750560639362,-174.3524889,0.0002499,2]
[366900378,1750560639372,-213.59462818,0.00024996,2]
[366900380,1750560639380,-160.0,0.00024999,2]
[366900382,1750560639390,-160.0,0.00024999,2]
[366900384,1750560639399,-836.56272071,0.00024999,2]
[366900386,1750560639408,-425.01221603,0.00024999,2]
[366900388,1750560639417,-160.0,0.00024999,2]
[366900390,1750560639425,-160.0,0.00024999,2]
[366900392,1750560639434,-273.74915806,0.00025,7]
[366900394,1750560639443,-847.29,0.00025013,2]
[366900396,1750560639452,-168.71604561,0.00025037,2]
[366900398,1750560639462,-847.29,0.00025113,3]
[366900400,1750560639470,-114814.360045,0.00025119,2]
[366900402,1750560639478,-38309.18154871,0.00025129,2]
[366900404,1750560639486,-160.0,0.00025181,2]
[366900406,1750560639494,-1328.31,0.000252,2]
[366900408,1750560639503,-847.29,0.00025213,4]
[366900410,1750560639510,-800.0,0.00025233,2]
[366900413,1750560639519,-151.0,0.00025241,7]
[366900415,1750560639527,-215.0738,0.00025262,2]
[366900417,1750560639536,-200.0,0.0002527,12]
[366900419,1750560639543,-114814.360045,0.0002527,2]
[366900422,1750560639561,-500.0,0.00025273,2]
[366900424,1750560639571,-500.0,0.00025273,2]
[366900442,1750560639728,-500.0,0.00025273,2]
[366900444,1750560639738,-462.03112124,0.00025274,2]
[366900446,1750560639748,-1119.301354,0.0002528,5]
[366900448,1750560639758,-151.29,0.00025284,4]
[366900450,1750560639767,-168.71604561,0.00025284,2]
[366900452,1750560639777,-3955.84507632,0.00025284,2]
[366900455,1750560639789,-229628.72009,0.0002529,2]
[366900456,1750560639798,-2000.0,0.000253,2]
[366900458,1750560639808,-2000.0,0.000253,2]
[366900460,1750560639820,-61455.20538405,0.000253,2]
[366900463,1750560639835,-3877.64549092,0.000253,2]
[366900547,1750560640920,-295.69908279,0.000239,10]
[366900550,1750560640930,-295.69908276,0.00023969,10]
[366900551,1750560640939,-233.0677602,0.00024038,10]
[366900981,1750560645265,-62.63132256,0.00024038,10]
[366900983,1750560645275,-295.69908276,0.00024107,10]
[366900985,1750560645285,-295.69908276,0.00024176,10]
[366900987,1750560645295,-295.69908276,0.00024245,10]
[366900989,1750560645309,-295.69908276,0.00024314,10]
[366900991,1750560645319,-295.69908276,0.00024383,11]
[366900993,1750560645329,-295.69908276,0.00024452,11]
[366900995,1750560645338,-295.69908276,0.00024521,11]